bitfinex/quotes_SOLUSD_20260118
["timestamp","ask_amount","ask_price","bid_price","bid_amount"]
[1768728791810,7.73638591,142.55,142.52,0.7846572]
[1768728793014,7.76508864,142.56,142.52,7.01650414]
[1768728793309,9.88257412,142.56,142.52,7.01650414]
[1768728794393,0.75029252,142.55,142.52,7.01650414]
[1768728794593,0.75029252,142.55,142.51,9.13432572]
[1768728794895,7.76538141,142.55,142.51,9.13432572]
[1768728795090,7.76538141,142.55,142.52,0.8446572]
[1768728796503,7.7659347,142.56,142.53,0.8446572]
[1768728796709,7.7659347,142.56,142.53,0.8146572]
[1768728799814,9.88342018,142.56,142.53,0.8146572]
[1768728800115,9.88342018,142.56,142.53,0.7846572]
[1768728800712,7.7659347,142.56,142.53,0.7846572]
[1768728801010,17.47748548,142.57,142.53,7.01596305]
[1768728801011,7.01422009,142.57,142.53,7.01596305]
[1768728801200,7.82783769,142.57,142.53,7.01596305]
[1768728801819,9.13122551,142.58,142.53,9.13344853]
[1768728802006,0.81419577,142.57,142.54,0.8446572]
[1768728802313,0.81419577,142.57,142.54,7.86016039]
[1768728803618,2.93168125,142.57,142.54,7.86016039]
[1768728804923,32.992109,142.6,142.54,7.86016039]
[1768728804924,15.46,142.6,142.56,0.86115477]
[1768728805099,15.46,142.6,142.56,0.83115477]
[1768728805100,25.4302446,142.6,142.56,0.83115477]
[1768728805301,2.9574652,142.59,142.56,0.83115477]
[1768728805923,9.97081957,142.59,142.56,0.83115477]
[1768728806124,2.11748548,142.58,142.56,0.83115477]
[1768728806316,2.11748548,142.58,142.54,7.01550319]
[1768728806317,2.9574652,142.57,142.53,7.01586822]
[1768728806834,7.85333409,142.59,142.55,7.01495797]
[1768728807011,0.83997972,142.59,142.56,0.86115477]
[1768728807418,2.9574652,142.59,142.56,0.86115477]
[1768728808023,9.97073825,142.59,142.56,0.86115477]
[1768728808330,0.83997972,142.57,142.54,0.86115477]
[1768728808516,2.9574652,142.57,142.54,0.86115477]
[1768728809131,2.9574652,142.57,142.54,7.87670036]
[1768728810132,0.83997972,142.57,142.54,7.87670036]
[1768728810324,2.9574652,142.57,142.54,7.87670036]
[1768728812233,0.83997972,142.57,142.54,7.87670036]
[1768728812816,7.85363354,142.58,142.55,0.86115477]
[1768728813017,0.83997972,142.58,142.55,0.86115477]
[1768728813536,9.97071513,142.59,142.55,0.86115477]
[1768728814030,0.83997972,142.58,142.55,0.86115477]
[1768728814215,2.9574652,142.58,142.55,0.86115477]
[1768728814732,2.9574652,142.58,142.55,0.83115477]
[1768728816332,7.01324993,142.59,142.55,0.83115477]
[1768728816540,10.04687967,142.6,142.56,0.8572025]
[1768728819142,10.04687967,142.6,142.56,7.87161769]
[1768728819346,10.04687967,142.6,142.57,0.8572025]
[1768728819554,10.04687967,142.6,142.57,0.8272025]
[1768728820148,0.1,142.6,142.57,0.8272025]
[1768728820347,0.1,142.6,142.57,9.13141719]
[1768728821546,0.1,142.6,142.58,0.8572025]
[1768728825856,2.21748548,142.6,142.58,0.8572025]
[1768728827449,2.21748548,142.6,142.57,0.8572025]
[1768728827450,3.03409061,142.6,142.57,0.8572025]
[1768728828552,3.03409061,142.6,142.57,7.87121735]
[1768728831457,0.91660513,142.6,142.57,7.87121735]
[1768728831639,3.03409061,142.6,142.57,7.87121735]
[1768728832038,0.81660513,142.59,142.57,7.01401485]
[1768728833553,0.81660513,142.59,142.56,7.01459034]
[1768728833745,0.81660513,142.59,142.57,0.86006317]
[1768728834261,0.81660513,142.59,142.56,7.87465351]
[1768728834755,2.93409061,142.59,142.56,7.87465351]
[1768728834961,9.94724983,142.59,142.56,0.86006317]
[1768728835640,7.82976435,142.59,142.56,0.86006317]
[1768728835940,9.94724983,142.59,142.56,0.86006317]
[1768728836158,2.93409061,142.59,142.56,7.87462568]
[1768728837366,7.93737034,142.6,142.57,0.86006317]
[1768728837534,0.1,142.6,142.57,0.86006317]
[1768728837949,0.1,142.6,142.58,0.86006317]
[1768728840172,0.92455919,142.6,142.57,7.87380466]
[1768728840379,0.82455919,142.59,142.56,0.86006317]
[1768728841459,0.82455919,142.59,142.56,7.87457511]
[1768728842678,9.23037964,142.6,142.54,19.65597896]
[1768728842881,10.05493883,142.6,142.57,0.86006317]
[1768728843177,7.93745335,142.6,142.57,0.86006317]
[1768728845682,10.05493883,142.6,142.57,0.86006317]
[1768728846178,0.82455919,142.58,142.55,7.87506551]
[1768728846373,2.94204467,142.58,142.55,0.86006317]
[1768728846678,0.82455919,142.58,142.55,0.86006317]
[1768728846864,2.94204467,142.58,142.55,0.86006317]
[1768728847480,2.9411714,142.58,142.55,0.86006317]
[1768728847861,7.01348263,142.59,142.56,0.86006317]
[1768728848365,7.83804182,142.59,142.56,0.86006317]
[1768728849773,7.01348263,142.59,142.56,0.86006317]
[1768728851278,7.83804182,142.59,142.56,0.86006317]
[1768728851481,9.95465403,142.59,142.56,0.86006317]
[1768728854692,7.83771374,142.59,142.56,0.86006317]
[1768728854973,9.95432595,142.59,142.56,0.86006317]
[1768728855778,9.12976676,142.59,142.56,0.86006317]
[1768728856887,0.1,142.6,142.58,0.86006317]
[1768728859475,7.11218078,142.61,142.58,0.86006317]
[1768728859677,10.05335218,142.61,142.58,0.86006317]
[1768728860991,2.11661221,142.6,142.58,0.86006317]
[1768728861391,7.93673997,142.61,142.58,0.86006317]
[1768728861692,2.11661221,142.6,142.58,0.83006317]
[1768728862786,7.93673997,142.61,142.58,0.83006317]
[1768728862985,2.11661221,142.6,142.58,0.83006317]
[1768728864780,2.21661221,142.61,142.59,0.89192927]
[1768728865092,0.1,142.61,142.59,0.89192927]
[1768728867694,0.1,142.61,142.59,0.86192927]
[1768728871098,0.1,142.61,142.6,0.89192927]
[1768728871275,0.1,142.61,142.6,0.86192927]
[1768728874506,0.1,142.61,142.6,0.8319293]
[1768728874697,0.93798757,142.61,142.58,7.01345513]
[1768728874899,2.95459978,142.59,142.54,24.554511]
[1768728875389,2.95459978,142.59,142.54,26.67112321]
[1768728876702,2.95459978,142.59,142.55,0.85663619]
[1768728877305,0.83798757,142.59,142.55,0.85663619]
[1768728877479,0.83798757,142.59,142.56,7.01459034]
[1768728877681,0.83798757,142.59,142.56,7.87122653]
[1768728879914,7.83993443,142.6,142.57,0.85663619]
[1768728880115,9.95654664,142.6,142.57,0.85663619]
[1768728883016,7.93944461,142.61,142.57,0.85663619]
[1768728883317,2.11661221,142.6,142.57,0.85663619]
[1768728884712,9.22891225,142.61,142.58,0.85663619]
[1768728886416,10.05605682,142.61,142.58,0.85663619]
[1768728886617,7.93944461,142.61,142.58,0.85663619]
[1768728886807,9.22891225,142.61,142.58,0.85663619]
[1768728887398,10.05605682,142.61,142.58,0.85663619]
[1768728888106,9.22891225,142.61,142.58,0.85663619]
[1768728890524,9.22891225,142.61,142.59,0.85663619]
[1768728890525,0.1,142.61,142.59,0.85663619]
[1768728891619,0.92714457,142.61,142.58,7.01360107]
[1768728891813,3.04375678,142.61,142.58,7.87023726]
[1768728893821,10.05603586,142.61,142.58,0.85663619]
[1768728894027,2.11661221,142.6,142.58,0.85663619]
[1768728897043,7.93942365,142.61,142.58,0.85663619]
[1768728897215,2.11661221,142.6,142.58,0.85663619]
[1768728897411,7.93942365,142.61,142.58,0.85663619]
[1768728897610,10.05603586,142.61,142.58,0.85663619]
[1768728899837,7.93942365,142.61,142.58,0.85663619]
[1768728900013,10.05603586,142.61,142.58,0.85663619]
[1768728900214,0.83240903,142.6,142.57,0.91116914]
[1768728900421,2.94902124,142.6,142.57,0.91116914]
[1768728902637,2.94902124,142.6,142.57,7.92502583]
[1768728904034,2.94902124,142.6,142.55,138.51351476]
[1768728904035,2.11661221,142.6,142.58,0.91116914]
[1768728905537,7.94468811,142.61,142.58,0.91116914]
[1768728905714,2.11661221,142.6,142.58,0.91116914]
[1768728907333,2.11592299,142.6,142.58,0.91116914]
[1768728907535,7.94468811,142.61,142.58,0.91116914]
[1768728907839,2.11592299,142.6,142.58,0.91116914]
[1768728909039,2.94833202,142.59,142.56,0.91116914]
[1768728909338,2.88833203,142.59,142.56,0.91116914]
[1768728910116,9.12935669,142.59,142.56,0.91116914]
[1768728912053,7.0134337,142.59,142.56,0.91116914]
[1768728912342,9.12935669,142.59,142.56,0.91116914]
[1768728915538,9.96176572,142.59,142.56,0.91116914]
[1768728915844,9.90176573,142.59,142.56,0.91116914]
[1768728918452,0.83240903,142.58,142.55,7.92604261]
[1768728918750,0.83240903,142.57,142.54,7.92674371]
[1768728918948,0.77240904,142.57,142.54,7.92674371]
[1768728919145,2.88833203,142.57,142.54,7.92674371]
[1768728919843,2.88833203,142.57,142.55,0.91116914]
[1768728921055,2.88833203,142.57,142.55,7.92621867]
[1768728921251,2.88833203,142.57,142.55,7.01504953]
[1768728921759,2.82833204,142.57,142.55,7.01504953]
[1768728922156,2.76833205,142.57,142.55,7.01504953]
[1768728924956,2.76833205,142.57,142.54,7.92667463]
[1768728930765,0.65240906,142.57,142.54,7.92667463]
[1768728930974,2.76833205,142.57,142.54,7.92667463]
[1768728931673,0.65240906,142.57,142.54,7.92667463]
[1768728931858,2.76833205,142.57,142.54,7.92667463]
[1768728935272,2.70833206,142.57,142.54,7.92667463]
[1768728938175,2.11592299,142.57,142.55,0.89568358]
[1768728938872,0.86098009,142.58,142.55,0.89568358]
[1768728939081,2.97690308,142.58,142.55,0.89568358]
[1768728939675,2.97690308,142.58,142.55,7.91065981]
[1768728945783,2.11592299,142.57,142.55,7.91065981]
[1768728945985,2.055923,142.57,142.55,7.91065981]
[1768728949614,1.99592301,142.57,142.55,7.91065981]
[1768728952102,0.86098009,142.58,142.55,7.91065981]
[1768728952508,2.91690309,142.58,142.55,7.91065981]
[1768728954804,0.8009801,142.58,142.55,7.91065981]
[1768728955102,2.11592299,142.57,142.55,7.91065981]
[1768728955294,2.055923,142.57,142.55,7.91065981]
[1768728956110,1.99592301,142.57,142.55,7.91065981]
[1768728956287,1.93592302,142.57,142.55,7.91065981]
[1768728956996,2.91690309,142.58,142.55,7.91065981]
[1768728960515,0.83294159,142.57,142.54,0.89543456]
[1768728962314,2.94967733,142.58,142.55,7.01508242]
[1768728962619,2.94967733,142.58,142.55,7.91051698]
[1768728965417,0.83375434,142.58,142.55,7.91051698]
[1768728985934,2.9503351,142.58,142.55,7.91051698]
[1768728988836,0.83375434,142.58,142.55,7.91051698]
[1768728989038,2.9503351,142.58,142.55,7.91051698]
[1768728992836,2.11658076,142.57,142.55,7.91051698]
[1768729000141,2.11658076,142.58,142.53,26.67218896]
[1768729000723,2.11658076,142.58,142.54,0.89369766]
[1768729001749,2.11658076,142.58,142.55,7.90878008]
[1768729002043,2.96435647,142.58,142.55,7.90878008]
[1768729005348,2.11658076,142.57,142.55,7.90878008]
[1768729005523,0.84777571,142.58,142.55,7.90878008]
[1768729005723,2.11658076,142.57,142.55,7.90878008]
[1768729006627,2.05658077,142.57,142.55,7.90878008]
[1768729011949,1.99658078,142.57,142.55,7.90878008]
[1768729013363,0.84777571,142.58,142.55,7.90878008]
[1768729013549,2.96435647,142.58,142.55,7.90878008]
[1768729017856,0.84777571,142.58,142.56,0.87342695]
[1768729018152,2.96435647,142.58,142.56,0.87342695]
[1768729019049,2.96435647,142.58,142.56,7.88781426]
[1768729020043,2.96435647,142.58,142.55,0.87342695]
[1768729020239,0.84627756,142.57,142.54,18.41176288]
[1768729020442,7.01317748,142.59,142.55,0.87342695]
[1768729020656,2.11658076,142.57,142.55,0.87342695]
[1768729021363,2.11658076,142.58,142.55,7.88812679]
[1768729022159,22.37283342,142.6,142.55,7.88812679]
[1768729022346,2.96285832,142.58,142.55,7.88812679]
[1768729025859,0.84627756,142.58,142.55,7.88812679]
[1768729026451,2.96285832,142.58,142.55,7.88812679]
[1768729027058,2.46285832,142.58,142.55,7.88812679]
[1768729028866,2.40285833,142.58,142.55,7.88812679]
[1768729029253,0.28627757,142.58,142.55,7.88812679]
[1768729029451,2.34285834,142.58,142.55,7.88812679]
[1768729030865,2.34285834,142.58,142.55,7.01469984]
[1768729031068,2.34285834,142.58,142.56,0.87342695]
[1768729031446,2.34301396,142.58,142.56,0.87342695]
[1768729034972,0.22627758,142.58,142.56,0.87342695]
[1768729035574,2.34301396,142.58,142.56,0.87342695]
[1768729036060,2.28301397,142.58,142.56,0.87342695]
[1768729036653,0.16627759,142.58,142.56,0.87342695]
[1768729036852,2.28301397,142.58,142.56,0.87342695]
[1768729040574,9.29665786,142.58,142.56,0.87342695]
[1768729041779,9.29665786,142.58,142.55,0.87342695]
[1768729044780,7.17992148,142.58,142.55,0.87342695]
[1768729049062,7.11992149,142.58,142.55,0.87342695]
[1768729049762,7.0599215,142.58,142.55,0.87342695]
[1768729053167,0.04627761,142.58,142.55,0.87342695]
[1768729053570,2.16301399,142.58,142.55,0.87342695]
[1768729054783,0.04627761,142.58,142.55,0.87342695]
[1768729054980,7.01311452,142.59,142.55,0.87342695]
[1768729055183,2.11673638,142.58,142.55,7.88830441]
[1768729055388,2.11673638,142.58,142.55,0.87342695]
[1768729055869,2.11673638,142.57,142.55,0.87342695]
[1768729056068,2.11673638,142.58,142.55,0.87342695]
[1768729057084,2.95090684,142.58,142.55,0.87342695]
[1768729057385,7.84728498,142.59,142.56,0.90130585]
[1768729057596,9.96402136,142.59,142.56,0.90130585]
[1768729058887,2.95090684,142.59,142.55,0.90130585]
[1768729059069,2.95090684,142.58,142.55,0.90130585]
[1768729059269,0.83417046,142.58,142.55,0.90130585]
[1768729059470,2.95090684,142.58,142.55,0.90130585]
[1768729061585,9.96460194,142.58,142.55,0.90130585]
[1768729065694,9.46460194,142.58,142.55,0.90130585]
[1768729068198,7.34786556,142.58,142.55,0.90130585]
[1768729068380,9.46460194,142.58,142.55,0.90130585]
[1768729072203,7.34786556,142.58,142.55,0.90130585]
[1768729074420,9.46460194,142.58,142.55,0.90130585]
[1768729075612,0.86476948,142.57,142.55,0.90130585]
[1768729075920,9.99520096,142.58,142.55,0.90130585]
[1768729076317,7.87846458,142.58,142.55,0.90130585]
[1768729076515,9.99520096,142.58,142.55,0.90130585]
[1768729084416,7.87846458,142.58,142.55,0.90130585]
[1768729084607,9.99520096,142.58,142.55,0.90130585]
[1768729086520,2.11673638,142.57,142.55,0.90130585]
[1768729087935,0.86476948,142.56,142.53,25.43149829]
[1768729088138,0.86476948,142.56,142.53,7.89192989]
[1768729088139,2.98150586,142.56,142.53,7.89192989]
[1768729091416,2.98207986,142.56,142.53,7.89192989]
[1768729092525,2.98207986,142.54,142.51,0.8758631]
[1768729092727,2.92207987,142.54,142.51,0.8758631]
[1768729093497,2.92207987,142.54,142.51,7.89285221]
[1768729094815,3.03398637,142.54,142.51,7.89285221]
[1768729095805,0.91667599,142.54,142.51,7.89285221]
[1768729096104,3.03398637,142.54,142.51,7.89285221]
[1768729099206,0.91667599,142.54,142.51,7.89285221]
[1768729099408,0.1119065,142.54,142.52,0.8758631]
[1768729099614,0.1119065,142.54,142.5,26.67871387]
[1768729099615,2.98207986,142.57,142.53,0.8758631]
[1768729099813,0.86476948,142.56,142.53,0.8758631]
[1768729100124,2.11731038,142.57,142.53,0.8758631]
[1768729100125,2.98207986,142.57,142.53,0.8758631]
[1768729100528,9.99638901,142.57,142.53,0.8758631]
[1768729102730,9.13161953,142.57,142.53,0.8758631]
[1768729102930,0.84568737,142.56,142.53,0.8758631]
[1768729104613,0.84568737,142.56,142.53,7.89171179]
[1768729107020,9.13161953,142.57,142.54,0.8359225]
[1768729107331,2.11731038,142.57,142.54,0.8359225]
[1768729108032,2.96299775,142.57,142.54,0.8359225]
[1768729111637,2.96299775,142.57,142.54,7.85127307]
[1768729112233,0.84568737,142.57,142.54,7.85127307]
[1768729115239,2.96299775,142.57,142.54,7.85127307]
[1768729117744,0.84568737,142.57,142.54,7.85127307]
[1768729120549,7.83638074,142.58,142.55,0.82486068]
[1768729121042,0.82257808,142.58,142.55,0.82486068]
[1768729121445,2.93988846,142.57,142.54,0.82486068]
[1768729121644,0.82257808,142.57,142.54,0.82486068]
[1768729123054,0.82257808,142.57,142.54,7.84012159]
[1768729129154,7.83638034,142.58,142.55,0.82486068]
[1768729129944,0.82257808,142.58,142.55,7.83989348]
[1768729130343,0.82257808,142.58,142.55,7.0150328]
[1768729134462,0.82257808,142.58,142.55,0.80213753]
[1768729135167,0.82257808,142.58,142.55,0.77213753]
[1768729135946,0.82257808,142.58,142.55,7.78716198]
[1768729140374,0.82257808,142.58,142.54,7.8177121]
[1768729141768,0.82257808,142.58,142.55,0.80213753]
[1768729143473,0.82257808,142.58,142.55,7.81717799]
[1768729154265,0.76135022,142.57,142.53,7.01526091]
[1768729154464,0.76135022,142.57,142.52,0.80213753]
[1768729154668,0.76135022,142.55,142.52,0.80213753]
[1768729154859,2.87758883,142.55,142.52,0.80213753]
[1768729155259,9.89448455,142.55,142.52,0.80213753]
[1768729160482,7.77824594,142.55,142.52,0.80213753]
[1768729160662,0.76135022,142.55,142.52,0.80213753]
[1768729161384,0.76135022,142.55,142.52,7.81864465]
[1768729170082,0.76135022,142.55,142.52,7.01650712]
[1768729170289,0.76135022,142.55,142.53,0.76031045]
[1768729174493,0.76135022,142.55,142.52,7.77658867]
[1768729181030,0.76135022,142.55,142.52,7.01627822]
[1768729181214,0.73436302,142.54,142.51,7.77224905]
[1768729181409,0.67436303,142.54,142.51,7.77224905]
[1768729181628,2.11623861,142.54,142.51,7.01687083]
[1768729182536,2.11623861,142.55,142.51,7.01687083]
[1768729182919,2.11623861,142.55,142.51,7.77224905]
[1768729183338,0.73436302,142.54,142.51,7.77224905]
[1768729185311,2.79060164,142.54,142.51,7.77224905]
[1768729205342,2.79060164,142.54,142.5,0.72426919]
[1768729205343,0.79422835,142.53,142.5,0.72426919]
[1768729205550,0.79422835,142.54,142.51,0.72426919]
[1768729206549,0.79422835,142.54,142.51,7.7412273]
[1768729210335,2.91046696,142.54,142.51,7.7412273]
[1768729210850,0.79422835,142.54,142.51,7.7412273]
[1768729211547,9.92763465,142.54,142.51,0.72426919]
[1768729212459,7.8099511,142.54,142.51,0.72426919]
[1768729212761,9.92763465,142.54,142.51,0.72426919]
[1768729212942,7.8099511,142.54,142.51,0.72426919]
[1768729213148,0.79422835,142.53,142.51,0.72426919]
[1768729213750,0.79422835,142.52,142.49,7.01803635]
[1768729213945,0.79422835,142.52,142.49,7.74230554]
[1768729215360,0.79422835,142.49,142.48,2.86321017]
[1768729215565,2.11768355,142.5,142.48,1.74747353]
[1768729215746,2.11768355,142.5,142.45,17.54937747]
[1768729215747,2.11768355,142.51,142.47,0.72426919]
[1768729216561,2.11768355,142.5,142.47,0.72426919]
[1768729216761,2.11768355,142.51,142.47,0.72426919]
[1768729218371,9.13515954,142.51,142.47,0.72426919]
[1768729223877,2.11768355,142.5,142.47,0.72426919]
[1768729224683,9.13528508,142.5,142.47,0.72426919]
[1768729226174,7.01705143,142.51,142.47,0.72426919]
[1768729226576,2.11768355,142.5,142.47,0.72426919]
[1768729230360,9.13473498,142.51,142.47,0.72426919]
[1768729230775,7.01705143,142.51,142.47,0.72426919]
[1768729230980,7.01705143,142.51,142.48,0.78930195]
[1768729235080,17.53960061,142.54,142.49,0.78930195]
[1768729235260,19.65728416,142.54,142.5,0.78930195]
[1768729236075,17.53960061,142.54,142.5,0.78930195]
[1768729236280,24.55517518,142.54,142.5,0.78930195]
[1768729238786,26.67285873,142.54,142.5,0.78930195]
[1768729244169,9.13325812,142.54,142.51,0.71765652]
[1768729245281,7.01557457,142.54,142.51,0.71765652]
[1768729247303,9.13325812,142.54,142.49,7.01793425]
[1768729247472,2.11768355,142.52,142.48,0.71765652]
[1768729247673,2.11768355,142.51,142.48,0.71765652]
[1768729248274,17.47768355,142.52,142.48,0.71765652]
[1768729249398,7.01705143,142.51,142.48,0.71765652]
[1768729250903,2.11768355,142.55,142.5,0.71765652]
[1768729251206,19.65480238,142.56,142.51,0.71765652]
[1768729251380,19.65480238,142.56,142.51,2.83534007]
[1768729251580,19.65480238,142.56,142.51,0.71765652]
[1768729251779,7.01508242,142.55,142.51,0.71765652]
[1768729252589,9.13276597,142.55,142.51,0.71765652]
[1768729256089,19.65480238,142.56,142.51,0.71765652]
[1768729256294,26.66939272,142.56,142.51,0.71765652]
[1768729256505,26.66939272,142.56,142.51,0.68765652]
[1768729262391,2.11768355,142.55,142.51,0.68765652]
[1768729262801,2.11768355,142.53,142.49,0.71051116]
[1768729263001,9.13473498,142.51,142.47,0.71051116]
[1768729263797,7.01705143,142.51,142.47,0.71051116]
[1768729263998,9.13473498,142.51,142.47,0.71051116]
[1768729264511,24.49473498,142.51,142.47,0.71051116]
[1768729264704,22.37705143,142.51,142.47,0.71051116]
[1768729265015,24.49473498,142.51,142.47,0.71051116]
[1768729265807,2.11768355,142.5,142.47,0.71051116]
[1768729267318,9.13528618,142.5,142.47,0.71051116]
[1768729273398,9.13666564,142.5,142.47,0.71051116]
[1768729284228,2.11906301,142.49,142.47,0.71051116]
[1768729284430,2.05906302,142.49,142.47,0.71051116]
[1768729288641,7.01760263,142.5,142.47,0.71051116]
[1768729288938,2.11906301,142.49,142.47,0.71051116]
[1768729289738,9.13666564,142.5,142.47,0.71051116]
[1768729290240,7.01760263,142.5,142.47,0.71051116]
[1768729290413,9.13666564,142.5,142.47,0.71051116]
[1768729290617,7.01760263,142.5,142.47,0.71051116]
[1768729297551,9.13666564,142.5,142.47,0.71051116]
[1768729297846,2.11906301,142.49,142.47,0.71051116]
[1768729302738,9.13666564,142.5,142.47,0.71051116]
[1768729304857,7.01760263,142.5,142.47,0.71051116]
[1768729305153,9.13666564,142.5,142.47,0.71051116]
[1768729308855,2.11906301,142.49,142.47,0.71051116]
[1768729311876,9.1372331,142.49,142.45,7.62817568]
[1768729312077,2.11906301,142.48,142.46,0.59285411]
[1768729312587,2.11906301,142.47,142.42,0.2]
[1768729312780,9.13823431,142.47,142.43,7.0207914]
[1768729313987,9.43310966,142.47,142.43,7.0207914]
[1768729314666,9.43310966,142.47,142.44,0.59285411]
[1768729319778,9.37310967,142.47,142.44,0.59285411]
[1768729319982,2.11906301,142.46,142.44,0.59285411]
[1768729320278,2.05906302,142.46,142.44,0.59285411]
[1768729322278,9.43310966,142.47,142.44,0.59285411]
[1768729322672,2.39659489,142.46,142.43,7.61364551]
[1768729324987,9.41615358,142.46,142.43,0.59285411]
[1768729328769,15.38,142.48,142.43,0.59285411]
[1768729328770,7.28384162,142.47,142.44,0.59285411]
[1768729328977,9.34290464,142.47,142.44,0.59285411]
[1768729329991,24.72290464,142.47,142.44,0.59285411]
[1768729330892,9.34290464,142.47,142.44,0.59285411]
[1768729331191,24.72290464,142.47,142.44,0.59285411]
[1768729332693,9.34290464,142.47,142.44,0.59285411]
[1768729332888,2.05906302,142.46,142.44,0.59285411]
[1768729333068,1.99906303,142.46,142.44,0.59285411]
[1768729333275,2.12005881,142.46,142.44,0.59285411]
[1768729334998,22.60384163,142.47,142.44,0.59285411]
[1768729335199,24.72390044,142.47,142.44,0.59285411]
[1768729335785,15.38,142.47,142.45,0.59285411]
[1768729337982,17.50005881,142.47,142.45,0.59285411]
[1768729340679,2.12005881,142.46,142.43,0.59285411]
[1768729341399,22.6408712,142.47,142.43,0.59285411]
[1768729341796,22.6408712,142.47,142.44,0.59285411]
[1768729342002,24.76093001,142.47,142.44,0.59285411]
[1768729342996,17.7418908,142.47,142.44,7.61318005]
[1768729344985,15.62183199,142.47,142.44,7.61318005]
[1768729348703,22.6409001,142.47,142.44,0.59285411]
[1768729349814,24.76095891,142.47,142.44,0.59285411]
[1768729353213,24.70095892,142.47,142.44,0.59285411]
[1768729358502,2.12005881,142.46,142.44,0.59285411]
[1768729359526,9.13968199,142.46,142.44,0.59285411]
[1768729359726,9.28868156,142.46,142.43,0.56768833]
[1768729360014,9.22868157,142.46,142.43,0.56768833]
[1768729365925,9.079682,142.46,142.43,0.56768833]
[1768729370226,9.21645823,142.46,142.43,0.56768833]
[1768729373126,7.15639941,142.46,142.43,0.56768833]
[1768729373319,9.27645822,142.46,142.43,0.56768833]
[1768729376731,7.15639941,142.46,142.43,0.56768833]
[1768729376931,9.27645822,142.46,142.43,0.56768833]
[1768729385042,7.15639941,142.46,142.43,0.56768833]
[1768729389346,9.27645822,142.46,142.43,0.56768833]
[1768729390548,7.15639941,142.46,142.43,0.56768833]
[1768729390721,9.27645822,142.46,142.43,0.56768833]
[1768729395453,9.27672859,142.46,142.43,0.56768833]
[1768729402655,7.15639941,142.46,142.43,0.56768833]
[1768729402847,9.27672859,142.46,142.43,0.56768833]
[1768729404858,24.65672859,142.46,142.43,0.56768833]
[1768729407059,17.50032918,142.46,142.43,0.56768833]
[1768729409062,24.5199722,142.46,142.43,0.56768833]
[1768729413058,22.39964302,142.46,142.43,0.56768833]
[1768729413256,24.5199722,142.46,142.43,0.56768833]
[1768729416666,24.61775701,142.46,142.43,0.56768833]
[1768729422047,24.5199722,142.46,142.43,0.56768833]
[1768729422778,24.61432731,142.46,142.43,0.56768833]
[1768729429382,2.12032918,142.45,142.43,0.56768833]
[1768729430381,24.61432731,142.46,142.43,0.56768833]
[1768729432179,22.49399813,142.46,142.43,0.56768833]
[1768729432377,24.5199722,142.46,142.43,0.56768833]
[1768729432987,22.39964302,142.46,142.43,0.56768833]
[1768729433489,24.60814156,142.46,142.43,0.56768833]
[1768729435383,22.48781238,142.46,142.43,0.56768833]
[1768729435600,24.60814156,142.46,142.43,0.56768833]
[1768729441493,2.20482626,142.45,142.42,0.74406472]
[1768729441676,2.20482626,142.44,142.42,0.2]
[1768729442285,2.12032918,142.43,142.42,0.2]
[1768729442478,2.12032918,142.43,142.41,0.74406472]
[1768729443572,9.14133276,142.43,142.41,0.74406472]
[1768729445495,0.08449708,142.44,142.41,0.74406472]
[1768729445679,2.12032918,142.43,142.41,0.74406472]
[1768729448479,9.1414234,142.43,142.41,0.74406472]
[1768729451118,2.12032918,142.43,142.41,0.74406472]
[1768729452106,9.14150943,142.43,142.41,0.74406472]
[1768729453090,9.08150944,142.43,142.41,0.74406472]
[1768729455321,9.14237355,142.43,142.41,0.74406472]
[1768729458334,0.08449708,142.44,142.41,0.74406472]
[1768729458509,2.1211933,142.43,142.41,0.74406472]
[1768729462015,9.1423337,142.43,142.41,0.74406472]
[1768729471242,2.1211933,142.43,142.41,0.74406472]
[1768729472243,9.14235282,142.43,142.41,0.74406472]
[1768729473650,9.14235282,142.43,142.41,0.2]
[1768729474555,9.14235282,142.43,142.41,0.71982343]
[1768729475853,7.10499693,142.44,142.41,0.71982343]
[1768729476150,2.1211933,142.43,142.41,0.71982343]
[1768729479354,9.1423467,142.43,142.41,0.71982343]
[1768729481341,9.22619023,142.44,142.41,0.71982343]
[1768729481541,2.1211933,142.43,142.41,0.71982343]
[1768729482662,9.14231123,142.43,142.41,0.71982343]
[1768729492370,7.10499693,142.44,142.41,0.71982343]
[1768729492558,2.1211933,142.43,142.41,0.71982343]
[1768729492759,7.10499693,142.44,142.41,0.71982343]
[1768729492951,2.1211933,142.43,142.41,0.71982343]
[1768729493773,9.14221799,142.43,142.41,0.71982343]
[1768729495878,9.14221799,142.43,142.41,0.2]
[1768729496170,2.1211933,142.42,142.41,0.2]
[1768729496358,2.1211933,142.42,142.41,1e-08]
[1768729501174,9.14267904,142.42,142.41,1e-08]
[1768729504279,9.14267904,142.42,142.4,0.74521806]
[1768729506485,7.02148574,142.42,142.4,0.74521806]
[1768729506787,9.14267904,142.42,142.4,0.74521806]
[1768729510393,2.1211933,142.41,142.39,0.2]
[1768729510800,7.0220433,142.41,142.39,0.2]
[1768729512197,9.69592577,142.42,142.39,0.2]
[1768729512400,9.69592577,142.42,142.39,0.74521806]
[1768729515900,9.69592577,142.42,142.4,0.54521806]